bitfinex/quotes_ETHUSD_20250904
["timestamp","ask_amount","ask_price","bid_price","bid_amount"]
[1757001633466,1.71,4310.8,4310.6,0.3036]
[1757001633801,2.32002833,4310.3,4309.9,0.004]
[1757001633969,2.32014499,4310.1,4309.9,0.004]
[1757001634163,3.946,4310.0,4309.9,0.004]
[1757001634361,2.32013178,4310.1,4310.0,0.3036]
[1757001634884,6.26513178,4310.1,4310.0,1.2009]
[1757001635280,6.26513178,4310.1,4310.0,0.7484]
[1757001635483,6.26513178,4310.1,4310.0,0.3036]
[1757001635665,5.32018561,4310.0,4309.9,0.004]
[1757001635860,5.80838561,4310.0,4309.9,0.004]
[1757001636087,6.36648561,4310.0,4309.9,0.004]
[1757001636260,6.83628561,4310.0,4309.9,0.004]
[1757001636465,7.60175039,4310.0,4309.9,0.004]
[1757001636690,11.54675039,4310.0,4309.9,0.004]
[1757001637491,10.48615039,4310.0,4309.9,0.004]
[1757001637792,7.97718561,4310.0,4309.9,1.2049]
[1757001637999,10.97718561,4310.0,4309.9,1.2049]
[1757001638194,10.97718561,4310.0,4309.9,0.3076]
[1757001638357,10.97718561,4310.0,4309.9,0.004]
[1757001638562,12.40591224,4310.0,4309.9,0.004]
[1757001638790,12.30691224,4310.0,4309.9,0.004]
[1757001638996,12.31091224,4310.0,4309.9,0.004]
[1757001639194,12.40991224,4310.0,4309.9,0.004]
[1757001639381,8.45891224,4310.0,4309.9,0.004]
[1757001639569,12.31091224,4310.0,4309.9,0.004]
[1757001639775,12.31091224,4310.0,4309.9,0.2989]
[1757001640097,8.35991224,4310.0,4309.9,0.7299]
[1757001640497,12.31091224,4310.0,4309.9,0.7299]
[1757001640818,12.31091224,4310.0,4309.9,0.2989]
[1757001641300,5.35991224,4310.0,4309.9,0.7299]
[1757001641499,7.98218561,4310.0,4309.9,1.2158]
[1757001641697,7.98018561,4310.0,4309.9,1.2158]
[1757001641871,7.98018561,4310.0,4309.9,0.7299]
[1757001642487,7.98018561,4310.0,4309.9,0.2989]
[1757001642893,4.03018561,4310.0,4309.9,0.7299]
[1757001643093,7.98018561,4310.0,4309.9,0.7299]
[1757001643404,5.06031224,4310.0,4309.9,1.2158]
[1757001643609,5.06031224,4310.0,4309.9,0.7299]
[1757001643775,9.00931224,4310.0,4309.9,0.7299]
[1757001643983,7.97818561,4310.0,4309.9,0.7299]
[1757001644315,7.97818561,4310.0,4309.9,0.2989]
[1757001644511,10.97818561,4310.0,4309.9,0.004]
[1757001644888,14.47398561,4310.0,4309.9,0.004]
[1757001645090,16.54991889,4310.0,4309.9,0.004]
[1757001645406,2.32077792,4308.9,4308.8,0.025]
[1757001645607,7.98077792,4308.9,4308.8,0.025]
[1757001646504,10.98077792,4308.9,4308.8,0.025]
[1757001646808,7.90510155,4308.9,4308.8,0.025]
[1757001646979,7.03077792,4308.9,4308.8,0.3199]
[1757001647181,5.659,4308.9,4308.8,1.2368]
[1757001647385,7.97977792,4308.9,4308.8,1.2368]
[1757001647605,5.659,4308.9,4308.8,1.2368]
[1757001648283,1.71,4308.9,4308.8,1.2368]
[1757001648684,5.659,4308.9,4308.8,1.2368]
[1757001649882,10.97977792,4308.9,4308.8,0.3199]
[1757001650123,8.13117792,4308.9,4308.8,0.025]
[1757001650309,12.07917792,4308.9,4308.8,0.025]
[1757001650820,12.20747792,4308.9,4308.8,0.025]
[1757001651316,12.07917792,4308.9,4308.8,0.025]
[1757001651482,12.20747792,4308.9,4308.8,0.025]
[1757001652521,12.70097792,4308.9,4308.8,0.025]
[1757001653027,2.32131665,4307.9,4307.8,0.025]
[1757001653211,8.44457269,4307.9,4307.8,0.025]
[1757001653414,8.57597269,4307.9,4307.8,0.025]
[1757001653625,4.49557269,4307.9,4307.8,0.025]
[1757001653925,8.44857269,4307.9,4307.8,0.025]
[1757001654124,8.57687269,4307.9,4307.8,0.025]
[1757001655140,9.07037269,4307.9,4307.8,0.025]
[1757001655427,12.86237269,4307.9,4307.8,0.025]
[1757001655834,12.36887269,4307.9,4307.8,0.025]
[1757001656525,7.49557269,4307.9,4307.8,0.025]
[1757001656733,11.44757269,4307.9,4307.8,0.3199]
[1757001657034,11.44757269,4307.9,4307.8,0.7509]
[1757001657229,11.44757269,4307.9,4307.8,0.3199]
[1757001657607,11.44757269,4307.9,4307.8,0.7509]
[1757001658206,11.44757269,4307.9,4307.8,0.3199]
[1757001658611,7.49557269,4307.9,4307.8,0.025]
[1757001658805,11.44657269,4307.9,4307.8,0.025]
[1757001659011,10.98231665,4307.9,4307.8,1.2368]
[1757001659630,10.98231665,4307.9,4307.8,0.7509]
[1757001659832,10.98231665,4307.9,4307.8,0.3199]
[1757001660126,4.71,4307.9,4307.8,1.2368]
[1757001660332,10.98231665,4307.9,4307.8,1.2368]
[1757001660528,7.03131665,4307.9,4307.8,1.2368]
[1757001660831,10.98231665,4307.9,4307.8,0.3199]
[1757001661031,12.31266947,4307.9,4307.8,0.3199]
[1757001661327,8.36166947,4307.9,4307.8,0.3199]
[1757001661537,12.31166947,4307.9,4307.8,0.7509]
[1757001662027,1.71,4307.9,4307.8,1.2408]
[1757001662329,1.71,4307.9,4307.8,3.56217053]
[1757001662330,5.661,4307.9,4307.8,3.56217053]
[1757001662528,5.662,4307.9,4307.8,1.2408]
[1757001662729,5.662,4307.9,4307.8,3.56217053]
[1757001663105,5.664,4307.9,4307.8,3.56217053]
[1757001663317,1.711,4307.9,4307.8,3.56217053]
[1757001663536,5.663,4307.9,4307.8,4.15053191]
[1757001664237,1.711,4307.9,4307.8,4.15053191]
[1757001664544,5.663,4307.9,4307.8,4.15053191]
[1757001664941,5.663,4307.9,4307.8,1.82916138]
[1757001665141,5.663,4307.9,4307.8,1.2408]
[1757001665314,7.98431665,4307.9,4307.8,0.029]
[1757001665909,4.03231665,4307.9,4307.8,0.029]
[1757001666115,4.03231665,4307.9,4307.8,0.3239]
[1757001666315,7.98431665,4307.9,4307.8,0.3239]
[1757001666645,7.98431665,4307.9,4307.8,0.029]
[1757001667543,12.01487272,4307.9,4307.8,0.029]
[1757001669348,12.01287272,4307.9,4307.8,0.029]
[1757001669844,1.711,4307.9,4307.8,0.7603]
[1757001670144,1.711,4307.9,4307.8,1.2542]
[1757001670326,5.661,4307.9,4307.8,1.2542]
[1757001670926,1.711,4307.9,4307.8,1.2542]
[1757001671142,1.711,4307.9,4307.8,3.57557053]
[1757001671343,1.711,4307.9,4307.8,4.16527417]
[1757001671547,5.57,4307.9,4307.8,4.16527417]
[1757001671743,1.711,4307.9,4307.8,4.16527417]
[1757001671920,5.345,4309.0,4307.8,1.84390364]
[1757001672121,5.661,4308.9,4307.9,0.927]
[1757001672458,3.951,4308.8,4308.3,2.3210755]
[1757001672668,1.711,4308.9,4308.8,0.2982]
[1757001672820,5.661,4308.9,4308.8,1.2252]
[1757001673135,5.661,4308.9,4308.8,0.2982]
[1757001673446,5.661,4308.9,4308.5,0.4331]
[1757001673819,1.711,4308.9,4308.5,0.4331]
[1757001674020,6.2738816,4308.8,4308.5,0.4331]
[1757001674216,2.32092038,4308.7,4307.9,2.81517383]
[1757001674448,3.953,4308.6,4308.0,0.4331]
[1757001674649,2.32104752,4308.4,4307.9,0.4939]
[1757001674914,2.32119346,4308.2,4307.8,0.4621]
[1757001675115,3.953,4308.1,4307.8,0.4621]
[1757001675341,3.953,4308.0,4307.8,0.029]
[1757001675546,1.711,4307.9,4307.8,0.029]
[1757001675941,5.663,4307.9,4307.8,0.7603]
[1757001676347,7.98431665,4307.9,4307.8,0.029]
[1757001676535,12.11387261,4307.9,4307.8,0.029]
[1757001677544,12.58127261,4307.9,4307.8,0.029]
[1757001677948,13.04027261,4307.9,4307.8,0.029]
[1757001680257,14.19266048,4307.9,4307.8,0.029]
[1757001680460,13.83227261,4307.9,4307.8,0.029]
[1757001680662,9.88027261,4307.9,4307.8,0.029]
[1757001680958,13.37227261,4307.9,4307.8,0.029]
[1757001681329,12.01287261,4307.9,4307.8,0.029]
[1757001681523,12.11547261,4307.9,4307.8,0.029]
[1757001681759,13.83037261,4307.9,4307.8,0.029]
[1757001681952,8.63287261,4307.9,4307.8,0.029]
[1757001682152,12.58487261,4307.9,4307.8,0.029]
[1757001682342,8.63287261,4307.9,4307.8,0.029]
[1757001682547,8.16547261,4307.9,4307.8,0.029]
[1757001682743,8.06287261,4307.9,4307.8,0.029]
[1757001682948,8.06287261,4307.9,4307.8,0.3272]
[1757001683263,1.711,4307.9,4307.8,1.2542]
[1757001683434,5.665,4307.9,4307.8,1.2542]
[1757001683632,5.665,4307.9,4307.8,0.3272]
[1757001684142,4.03231665,4307.9,4307.8,0.3272]
[1757001684342,7.98631665,4307.9,4307.8,0.7603]
[1757001684641,4.03231665,4307.9,4307.8,0.7603]
[1757001684840,7.98631665,4307.9,4307.8,0.7603]
[1757001685152,12.55176579,4307.9,4307.8,0.029]
[1757001685733,12.65076579,4307.9,4307.8,0.029]
[1757001686576,13.11816579,4307.9,4307.8,0.029]
[1757001687062,12.55176579,4307.9,4307.8,0.3272]
[1757001687359,12.55076579,4307.9,4307.8,0.3272]
[1757001687658,12.55076579,4307.9,4307.8,0.029]
[1757001687861,8.59776579,4307.9,4307.8,0.029]
[1757001688038,12.55076579,4307.9,4307.8,0.029]
[1757001688435,8.59776579,4307.9,4307.8,0.029]
[1757001688635,12.54976579,4307.9,4307.8,0.029]
[1757001689971,12.54976579,4307.9,4307.8,0.3272]
[1757001690265,8.59776579,4307.9,4307.8,1.2542]
[1757001690570,10.98531665,4307.9,4307.8,1.2542]
[1757001691066,7.03231665,4307.9,4307.8,1.2542]
[1757001691267,10.98431665,4307.9,4307.8,0.3272]
[1757001691465,10.98431665,4307.9,4307.8,0.029]
[1757001691769,11.08331665,4307.9,4307.8,0.029]
[1757001691972,12.95846977,4307.9,4307.8,0.029]
[1757001692267,13.42586977,4307.9,4307.8,0.029]
[1757001693187,9.47386977,4307.9,4307.8,0.029]
[1757001693389,13.42486977,4307.9,4307.8,0.029]
[1757001693892,12.95746977,4307.9,4307.8,0.029]
[1757001694064,13.42486977,4307.9,4307.8,0.029]
[1757001694659,13.88386977,4307.9,4307.8,0.029]
[1757001694887,14.67586977,4307.9,4307.8,0.029]
[1757001695058,14.67586977,4307.9,4307.8,1e-08]
[1757001695260,17.11986977,4307.9,4307.8,1e-08]
[1757001695491,17.45999692,4307.9,4307.8,1e-08]
[1757001695800,17.11986977,4307.9,4307.8,1e-08]
[1757001696796,13.16886977,4307.9,4307.8,1e-08]
[1757001696978,17.11886977,4307.9,4307.8,1e-08]
[1757001697695,17.11786977,4307.9,4307.8,1e-08]
[1757001697890,17.45799692,4307.9,4307.8,1e-08]
[1757001698090,13.50899692,4307.9,4307.8,1e-08]
[1757001698287,17.45899692,4307.9,4307.8,1e-08]
[1757001698771,13.50899692,4307.9,4307.8,1e-08]
[1757001698976,17.45899692,4307.9,4307.8,1e-08]
[1757001699290,17.11886977,4307.9,4307.8,1e-08]
[1757001699682,13.16886977,4307.9,4307.8,1e-08]
[1757001699881,12.85846977,4307.9,4307.8,1e-08]
[1757001700082,8.90746977,4307.9,4307.8,1e-08]
[1757001700313,12.96466977,4307.9,4307.8,1e-08]
[1757001700594,14.67046977,4307.9,4307.8,1e-08]
[1757001700895,14.21856977,4307.9,4307.8,1e-08]
[1757001701083,10.26756977,4307.9,4307.8,1e-08]
[1757001701406,14.67346977,4307.9,4307.8,1e-08]
[1757001701700,15.35148479,4307.9,4307.8,1e-08]
[1757001701862,10.71946977,4307.9,4307.8,1e-08]
[1757001702058,29.92557465,4307.9,4307.8,1e-08]
[1757001702358,12.86246977,4307.9,4307.8,0.74680001]
[1757001702564,4.03231665,4307.9,4307.8,1.24330001]
[1757001702794,7.98931665,4307.9,4307.8,1.24330001]
[1757001703002,1.711,4307.9,4307.8,1.24330001]
[1757001703365,5.668,4307.9,4307.8,1.24330001]
[1757001703716,7.98931665,4307.9,4307.8,1.24330001]
[1757001704171,7.98931665,4307.9,4307.8,0.30180001]
[1757001704372,1.711,4307.9,4307.8,1.24330001]
[1757001704564,1.711,4307.9,4307.8,1.36763001]
[1757001705196,5.672,4307.9,4307.8,1.36763001]
[1757001705491,5.671,4307.9,4307.8,1.36763001]
[1757001705703,1.711,4307.9,4307.8,1.36763001]
[1757001706068,5.671,4307.9,4307.8,3.68900054]
[1757001706267,1.711,4307.9,4307.8,3.68900054]
[1757001706464,5.003,4307.9,4307.8,3.68900054]
[1757001706698,1.711,4307.9,4307.8,3.68900054]
[1757001706865,1.711,4307.9,4307.8,3.71221424]
[1757001707066,1.711,4307.9,4307.8,4.48100054]
[1757001707301,5.011,4307.9,4307.8,4.48100054]
[1757001707665,5.349,4309.3,4308.7,2.32088564]
[1757001707862,5.699,4308.8,4308.7,2.78507043]
[1757001708064,5.699,4308.8,4308.7,1.70748479]
[1757001708282,5.699,4308.8,4308.7,1.2433]
[1757001709596,2.32110113,4308.3,4308.2,0.4965]
[1757001709797,3.961,4308.3,4308.0,0.445]
[1757001710010,6.28215472,4308.3,4307.8,1e-08]
[1757001710209,3.961,4308.3,4307.8,1e-08]
[1757001710362,2.321155,4308.2,4307.8,1e-08]
[1757001710569,5.32126276,4308.0,4307.8,1e-08]
[1757001710782,6.28231665,4307.9,4307.8,1e-08]
[1757001711393,2.32131665,4307.9,4307.8,1e-08]
[1757001711617,6.28231665,4307.9,4307.8,1e-08]
[1757001712696,7.14267459,4307.9,4307.8,1e-08]
[1757001713081,3.18167459,4307.9,4307.8,1e-08]
[1757001713305,7.14167459,4307.9,4307.8,1e-08]
[1757001714113,6.28231665,4307.9,4307.8,0.74680001]
[1757001714471,2.32131665,4307.9,4307.8,0.74680001]
[1757001714676,6.28231665,4307.9,4307.8,0.74680001]
[1757001714994,2.32131665,4307.9,4307.8,0.74680001]
[1757001715188,3.96,4307.9,4307.8,1.24330001]
[1757001715386,6.28131665,4307.9,4307.8,1.24330001]
[1757001715592,2.32131665,4307.9,4307.8,1.24330001]
[1757001715788,6.28031665,4307.9,4307.8,1.24330001]
[1757001716286,6.28031665,4307.9,4307.8,0.74680001]
[1757001716683,6.28031665,4307.9,4307.8,0.30180001]
[1757001717208,6.28031665,4307.9,4307.8,1e-08]
[1757001717509,6.28031665,4307.9,4307.8,0.74680001]
[1757001717718,2.32131665,4307.9,4307.8,0.30180001]
[1757001717888,6.27931665,4307.9,4307.8,0.74680001]
[1757001718415,2.32131665,4307.9,4307.8,0.74680001]
[1757001718714,6.27931665,4307.9,4307.8,0.74680001]
[1757001719814,6.27931665,4307.9,4307.8,0.30180001]
[1757001719985,6.27931665,4307.9,4307.8,0.74680001]
[1757001720515,1.737,4308.8,4307.8,0.74680001]
[1757001720718,2.32108597,4308.4,4307.8,1.24330001]
[1757001720904,1.737,4308.8,4307.8,0.79830001]
[1757001721227,1.737,4308.8,4307.9,0.9415]
[1757001721522,1.737,4308.8,4308.7,0.3018]
[1757001721725,5.695,4308.8,4308.7,0.3018]
[1757001721881,1.737,4308.8,4308.7,3.56418564]
[1757001722082,5.695,4308.8,4308.7,3.56418564]
[1757001722615,5.696,4308.8,4308.7,3.56418564]
[1757001723024,5.696,4308.8,4308.7,4.15270323]
[1757001723189,5.695,4308.8,4308.7,4.15270323]
[1757001723715,1.737,4308.8,4308.7,4.15270323]
[1757001723915,5.695,4308.8,4308.7,4.15270323]
[1757001724104,1.737,4308.8,4308.7,4.94470323]
[1757001724288,0.026,4308.8,4308.7,4.94470323]
[1757001724485,0.001,4309.3,4309.2,2.32061635]
[1757001724687,3.837,4309.3,4309.2,2.7847472]
[1757001724885,3.837,4309.3,4309.2,4.0280472]
[1757001724886,0.001,4309.3,4309.2,4.0280472]
[1757001725098,0.001,4309.3,4309.2,4.8200472]
[1757001725298,3.31,4309.3,4309.2,4.8200472]
[1757001725698,0.001,4309.3,4309.2,7.8200472]
[1757001725916,1.711,4309.7,4309.6,2.32040096]
[1757001726098,5.017,4309.7,4309.6,6.38628883]
[1757001726298,5.017,4309.7,4309.6,7.32778883]
[1757001726519,0.025,4309.8,4309.6,7.32778883]
[1757001726520,0.025,4309.8,4309.7,3.11234712]
[1757001726705,1.672,4309.8,4309.7,7.07705059]
[1757001727021,0.025,4309.8,4309.7,7.35564712]
[1757001727193,0.025,4309.8,4309.7,8.39966072]
[1757001728211,3.957,4310.1,4310.0,3.11218561]
[1757001728519,3.958,4310.4,4310.2,6.11207795]
[1757001728722,0.001,4310.4,4310.2,6.11207795]
[1757001729017,0.001,4310.4,4310.2,7.31847795]
[1757001729528,0.001,4310.4,4310.2,7.49102013]
[1757001729689,0.001,4310.4,4310.2,9.7589281]
[1757001730033,0.001,4310.4,4310.2,9.58638592]
[1757001730186,0.001,4310.4,4310.2,7.31847795]
[1757001730397,3.959,4310.4,4310.2,3.52647795]
[1757001730791,3.959,4310.4,4310.2,0.3041]
[1757001731099,3.959,4310.4,4310.2,3.05557795]
[1757001731503,3.959,4310.4,4310.2,3.52647795]
[1757001731704,3.959,4310.4,4310.2,3.91673367]
[1757001731899,3.959,4310.3,4310.2,3.91673367]
[1757001732118,3.958,4310.3,4310.2,3.91673367]
[1757001732823,0.001,4310.3,4310.2,3.91673367]
[1757001733223,0.001,4310.3,4310.2,3.93993444]
[1757001733425,0.001,4310.3,4310.2,3.91673367]
[1757001733643,0.001,4310.3,4310.2,4.70873367]
[1757001734305,0.001,4310.3,4310.2,7.70873367]
[1757001734707,0.001,4310.3,4310.2,7.80169737]
[1757001735525,0.001,4310.3,4310.2,9.40169737]
[1757001737730,0.001,4310.9,4310.8,6.11175503]
[1757001737935,0.001,4310.9,4310.8,6.95491339]
[1757001738097,0.001,4310.9,4310.8,8.16131339]
[1757001739029,0.001,4310.9,4310.8,9.76131339]
[1757001740134,0.001,4310.9,4310.8,8.16131339]
[1757001740739,0.001,4310.9,4310.8,12.38131339]
[1757001741860,0.001,4310.9,4310.8,23.99621656]
[1757001742206,0.001,4310.9,4310.8,25.59621656]
[1757001742515,0.001,4310.9,4310.8,25.71238774]
[1757001742714,0.001,4312.3,4312.2,3.1110019]
[1757001742953,0.001,4312.3,4312.2,6.5752921]
[1757001743152,0.001,4313.1,4313.0,3.11057175]
[1757001743567,0.001,4313.1,4313.0,7.34015746]
[1757001743776,1e-08,4313.7,4313.3,0.792]
[1757001743938,1e-08,4313.7,4313.6,6.41434925]
[1757001744143,1e-08,4313.8,4313.6,12.63425722]
[1757001744345,1e-08,4313.8,4313.7,7.84367746]
[1757001744648,1e-08,4313.8,4313.7,7.38909551]
[1757001744850,0.58880001,4313.8,4313.6,2.31824736]
[1757001745063,0.09900001,4313.8,4313.7,2.31819551]
[1757001745268,0.58880001,4313.8,4313.7,2.31819551]
[1757001745638,0.58880001,4313.8,4313.5,2.31830253]
[1757001745639,1.04780001,4313.8,4313.5,2.31830253]
[1757001745938,1.04780001,4313.8,4313.5,2.31826147]
[1757001745939,0.4898,4313.7,4313.5,2.31826147]
[1757001746139,0.4898,4313.7,4313.3,2.31840101]
[1757001746339,0.4898,4313.7,4313.5,2.31829189]
[1757001746885,0.1026,4313.6,4313.5,2.31829189]
[1757001747235,0.5924,4313.6,4313.4,2.31833793]
[1757001747441,0.5924,4313.6,4313.2,2.31846065]
[1757001747642,0.1026,4313.6,4313.4,2.31835076]
[1757001747893,0.4898,4313.5,4312.7,3.0]
[1757001748189,1e-08,4313.8,4313.4,2.31835674]
[1757001748480,1e-08,4313.8,4313.7,2.31819551]
[1757001748638,3.95300001,4313.8,4312.7,0.4314]
[1757001748844,0.099,4313.6,4313.0,2.31852043]
[1757001749081,0.099,4313.6,4312.4,3.0]
[1757001749082,0.4898,4313.5,4312.4,3.0]
[1757001749244,0.4627,4313.4,4312.9,2.31862267]
[1757001749584,0.099,4313.0,4312.8,2.31867083]
[1757001749773,4.052,4313.0,4312.9,2.31862551]
[1757001750675,0.099,4313.0,4312.9,2.31862551]
[1757001750899,3.952,4313.1,4312.9,0.76783472]
[1757001751040,1e-08,4313.8,4313.7,2.31819551]
[1757001751555,3.95200001,4313.8,4313.7,2.31819551]
[1757001751757,1e-08,4313.8,4313.7,2.31819551]
[1757001752547,1e-08,4313.8,4313.7,3.05369551]
[1757001752850,1e-08,4313.8,4313.7,6.06546696]
[1757001753055,1e-08,4313.8,4313.7,9.04228501]
[1757001753853,1e-08,4313.8,4313.7,4.04388501]
[1757001754049,1e-08,4313.8,4313.7,2.31819551]
[1757001754280,0.09900001,4313.8,4313.7,2.31819551]
[1757001755797,0.09900001,4313.8,4312.9,2.31861461]
[1757001755965,0.09900001,4313.8,4312.9,5.31861461]
[1757001756290,0.09900001,4313.8,4313.7,2.31819551]
[1757001757881,0.10000001,4313.8,4313.7,2.31819551]
[1757001758356,0.10000001,4313.8,4313.6,2.31823482]
[1757001758753,0.10000001,4313.8,4313.5,6.57826262]
[1757001758956,0.54010001,4313.8,4313.5,6.57826262]
[1757001759193,0.10000001,4313.8,4313.6,2.31824925]
[1757001759557,0.10000001,4313.8,4313.5,6.5782914]
[1757001760286,0.10000001,4313.8,4313.6,2.31824503]
[1757001760493,0.10000001,4313.8,4313.5,4.26]
[1757001760710,0.10000001,4313.8,4313.7,2.31819551]
[1757001761006,0.00100001,4313.8,4313.7,2.31819551]
[1757001761173,4.07030001,4313.8,4313.6,2.31823628]
[1757001761888,4.07030001,4313.8,4313.7,2.31819551]
[1757001762096,4.07030001,4313.8,4313.6,2.31823321]
[1757001762597,4.07030001,4313.8,4313.7,2.31819551]
[1757001763420,0.001,4314.1,4314.0,2.3180343]
[1757001763618,0.001,4314.7,4314.4,2.31781939]
[1757001763768,0.001,4314.7,4314.6,2.61171195]
[1757001763969,0.001,4314.7,4314.6,4.21171195]
[1757001764236,0.001,4314.7,4314.6,5.11371195]
[1757001764372,0.001,4314.7,4314.6,6.34595254]
[1757001764974,1e-08,4314.8,4314.7,6.10965823]
[1757001765176,1e-08,4314.8,4314.7,7.01165823]
[1757001765415,1e-08,4314.8,4314.7,7.30565823]
[1757001766087,1e-08,4314.8,4314.7,11.30865823]
[1757001766282,1e-08,4314.8,4314.7,9.1925887]
[1757001766483,1e-08,4314.8,4314.7,7.2045887]
[1757001767317,1e-08,4314.8,4314.7,7.4985887]
[1757001768038,1e-08,4314.8,4314.7,7.9261887]
[1757001768343,1e-08,4314.8,4314.7,7.2045887]
[1757001768637,1e-08,4314.8,4314.7,5.31765823]
[1757001770222,1e-08,4314.8,4314.7,5.61165823]
[1757001770427,0.12230001,4314.8,4314.7,2.31765823]
[1757001770947,1e-08,4314.8,4314.7,2.31765823]
[1757001771940,1e-08,4314.8,4314.7,2.63483481]
[1757001772119,1e-08,4314.8,4314.7,3.83451291]
[1757001772730,0.12230001,4314.8,4314.7,3.11291291]
[1757001773813,1e-08,4314.8,4314.7,3.11291291]
[1757001775142,1.03030001,4314.8,4314.6,0.004]
[1757001775345,0.908,4314.7,4314.6,0.004]
[1757001775641,0.4711,4314.7,4314.6,0.004]
[1757001775840,0.5966,4314.7,4314.6,0.004]
[1757001776014,5.0214,4314.7,4314.6,0.004]
[1757001776618,8.07305836,4314.7,4314.6,0.004]
[1757001778530,11.07305836,4314.7,4314.6,0.004]
[1757001779233,7.08205836,4314.7,4314.6,0.004]
[1757001779418,11.07005836,4314.7,4314.6,0.004]
[1757001780656,11.06805836,4314.7,4314.6,0.004]
[1757001781527,7.08205836,4314.7,4314.6,0.004]
[1757001781826,11.06705836,4314.7,4314.6,0.004]
[1757001782271,7.08205836,4314.7,4314.6,0.004]
[1757001782572,11.06705836,4314.7,4314.6,0.004]
[1757001782733,2.31792684,4314.2,4314.1,0.004]
[1757001783063,11.77350483,4314.2,4314.1,0.004]
[1757001783266,11.90210483,4314.2,4314.1,0.004]
[1757001783567,12.80400483,4314.2,4314.1,0.004]
[1757001784431,12.91951462,4314.2,4314.1,0.004]
[1757001784870,8.38920483,4314.2,4314.1,0.004]
[1757001785160,11.13652684,4314.2,4314.1,0.004]
[1757001785678,8.00792684,4314.2,4314.1,0.004]
[1757001785830,5.691,4314.2,4314.1,0.004]
[1757001786031,5.691,4314.2,4314.1,0.7256]
[1757001786266,5.691,4314.2,4314.1,0.298]
[1757001787260,5.691,4314.2,4314.1,0.7256]
[1757001787630,5.691,4314.2,4314.1,0.298]
[1757001787827,8.00892684,4314.2,4314.1,0.004]
[1757001788060,8.13122684,4314.2,4314.1,0.004]
[1757001788274,5.8133,4314.2,4314.1,0.004]
[1757001788442,5.691,4314.2,4314.1,0.004]
[1757001788978,5.691,4314.2,4314.1,0.3108]
[1757001789292,5.689,4314.2,4314.1,3.55178057]
[1757001789442,5.689,4314.2,4314.1,4.13876262]
[1757001790265,1.708,4314.2,4314.1,4.13876262]
[1757001790441,0.00100001,4314.8,4314.7,2.31765823]
[1757001790647,3.55900001,4314.8,4314.6,2.31770124]
[1757001790847,3.55900001,4314.8,4314.7,3.08405823]
[1757001791155,0.00100001,4314.8,4314.7,3.54745823]
[1757001791458,0.00100001,4314.8,4314.7,4.13398019]
[1757001791666,3.98100001,4314.8,4314.7,4.13398019]
[1757001792048,3.98300001,4314.8,4314.7,4.13398019]
[1757001793538,0.00100001,4314.8,4314.7,4.13398019]
[1757001793780,3.98200001,4314.8,4314.7,4.13398019]
[1757001795273,0.00100001,4314.8,4314.7,4.13398019]
[1757001795483,0.00100001,4314.8,4314.7,4.92598019]
[1757001795948,0.00100001,4314.8,4314.7,4.13398019]
[1757001797754,0.00100001,4314.8,4314.7,9.20915677]
[1757001797952,0.00100001,4314.8,4314.7,12.18598019]
[1757001798460,0.001,4315.3,4315.2,3.10938969]
[1757001798653,0.001,4315.3,4315.2,21.7835116]
[1757001798980,0.001,4315.3,4315.2,22.99013771]
[1757001799490,0.025,4316.8,4315.3,3.792]
[1757001799783,0.025,4316.8,4316.7,3.41538442]
[1757001799982,0.025,4316.8,4316.7,5.01538442]
[1757001800182,0.025,4316.8,4316.7,5.93838442]
[1757001801655,0.025,4316.8,4316.7,4.33838442]
[1757001803746,0.025,4316.8,4316.7,4.36155026]
[1757001803981,0.025,4316.8,4316.7,5.48366541]
[1757001805606,0.001,4317.3,4317.2,3.10831613]
[1757001805777,0.001,4318.2,4317.7,3.10804789]
[1757001805979,0.001,4318.2,4317.7,10.41100836]
[1757001806185,0.001,4318.2,4317.7,11.31084789]
[1757001806389,0.001,4318.2,4317.7,12.67354488]
[1757001806983,0.001,4318.2,4317.7,14.27354488]
[1757001807359,0.025,4318.8,4318.7,2.31551161]
[1757001807565,0.025,4318.8,4318.7,25.75761474]
[1757001807792,1e-08,4318.8,4318.7,28.67013652]
[1757001807983,1e-08,4318.8,4318.7,30.27013652]
[1757001808283,1e-08,4318.8,4318.7,12.5973885]
[1757001808484,1e-08,4318.8,4318.7,6.91551161]
[1757001808690,0.13300001,4318.8,4318.1,0.792]
[1757001808846,0.13300001,4318.8,4318.7,2.31551161]
[1757001809051,1e-08,4318.8,4318.7,2.31551161]
[1757001809559,0.13590001,4318.8,4318.2,3.0]
[1757001809884,0.13590001,4318.8,4317.8,4.4394]
[1757001809885,0.13590001,4318.8,4317.8,0.4634]
[1757001810097,0.13590001,4318.8,4315.7,1.0]
[1757001810098,0.62580001,4318.8,4318.3,2.31568923]
[1757001810297,0.9134,4318.7,4317.4,6.91620882]
[1757001810462,0.4235,4318.7,4317.5,4.63231036]
[1757001810666,0.4899,4318.6,4317.4,1.6]
[1757001810983,0.4899,4318.6,4318.2,2.31574439]
[1757001811186,1e-08,4318.8,4317.5,0.78912719]
[1757001811187,1e-08,4318.8,4318.4,2.31566889]
[1757001811486,1e-08,4318.8,4318.4,2.31567247]
[1757001811664,1e-08,4318.8,4318.3,0.4596]
[1757001811665,1e-08,4318.8,4318.3,2.31572472]
[1757001812162,0.133,4318.4,4318.2,2.31577285]
[1757001812473,0.133,4318.4,4317.6,3.0]
[1757001812662,0.133,4318.4,4317.7,2.31604789]
[1757001812870,0.133,4318.4,4317.9,2.31589379]
[1757001813261,0.133,4318.4,4317.6,0.37891272]
[1757001813262,0.6229,4318.4,4318.1,2.31582071]
[1757001813657,0.6229,4318.4,4317.8,2.31599064]
[1757001813980,0.6229,4318.4,4317.0,4.766]
[1757001813981,0.116,4317.9,4316.8,0.025]
[1757001814184,3.974,4317.8,4316.9,2.64293458]